bitfinex/quotes_SOLUSD_20250206
["timestamp","ask_amount","ask_price","bid_price","bid_amount"]
[1738870057752,22.18746734,191.22,191.21,0.063]
[1738870058736,0.09566734,191.22,191.21,0.063]
[1738870059867,2.18746734,191.22,191.21,0.063]
[1738870060271,55.83784776,191.22,191.21,0.063]
[1738870061138,94.27654671,191.22,191.21,0.0001]
[1738870061336,30.0,191.17,191.16,0.063]
[1738870061539,53.65038042,191.17,191.16,0.063]
[1738870062035,55.74268042,191.17,191.16,0.063]
[1738870063562,55.74268042,191.17,191.15,0.063]
[1738870063735,30.0,191.13,191.11,0.063]
[1738870063938,23.65038042,191.12,191.11,0.063]
[1738870064159,25.74328042,191.12,191.11,0.063]
[1738870064663,32.05198042,191.12,191.11,0.063]
[1738870064880,45.84029895,191.12,191.11,0.0001]
[1738870065245,43.78831853,191.1,191.09,0.0001]
[1738870065447,67.43869895,191.1,191.09,0.0001]
[1738870066057,91.08907937,191.1,191.09,0.0001]
[1738870066250,94.18217937,191.1,191.09,0.0001]
[1738870066455,69.40630895,191.1,191.09,0.0001]
[1738870066853,69.40630895,191.1,191.01,0.063]
[1738870066854,30.0,191.05,191.01,0.063]
[1738870067055,23.65038042,191.02,191.01,0.063]
[1738870068138,25.74438042,191.02,191.01,0.063]
[1738870068338,25.74438042,191.02,191.01,0.0001]
[1738870068646,30.0,191.01,191.0,0.0001]
[1738870068844,50.0,190.9,190.89,8.00156381]
[1738870069072,20.0,190.9,190.89,8.00156381]
[1738870070039,73.65038042,190.9,190.89,8.00156381]
[1738870070350,75.74568042,190.9,190.89,8.00156381]
[1738870071171,89.40850895,190.9,190.89,8.00156381]
[1738870071342,113.05888937,190.9,190.89,8.00156381]
[1738870071547,75.74568042,190.9,190.89,8.00156381]
[1738870072755,30.0,190.9,190.89,8.00156381]
[1738870073268,53.65038042,190.9,190.89,8.00156381]
[1738870073453,55.74568042,190.9,190.81,28.89098042]
[1738870073651,23.65038042,190.87,190.81,28.89098042]
[1738870074257,23.65038042,190.88,190.81,28.89098042]
[1738870074649,0.10285613,190.83,190.81,5.2406]
[1738870074858,0.10285613,190.83,190.82,23.65038042]
[1738870075448,0.10285613,190.83,190.81,23.65038042]
[1738870075657,0.10285613,190.83,190.8,23.65038042]
[1738870076159,0.10285613,190.83,190.81,23.65038042]
[1738870076374,0.10285613,190.83,190.8,23.65038042]
[1738870076963,0.10285613,190.83,190.77,6.6625]
[1738870076964,25.84933655,190.83,190.77,30.31288042]
[1738870077173,23.65038042,190.8,190.74,23.65038042]
[1738870077472,23.65038042,190.79,190.73,23.65038042]
[1738870077678,30.0,190.81,190.72,11.5367]
[1738870077679,23.65038042,190.78,190.72,35.18708042]
[1738870078290,55.74698042,190.79,190.72,35.18708042]
[1738870078770,30.0,190.8,190.72,6.2936]
[1738870078975,30.0,190.72,190.63,6.442]
[1738870079176,30.0,190.66,190.56,0.78668782]
[1738870079479,30.0,190.64,190.55,51.9860115]
[1738870079660,30.0,190.62,190.55,45.5440115]
[1738870079860,30.0,190.65,190.58,36.72556115]
[1738870080168,30.0,190.67,190.58,36.72556115]
[1738870080370,23.65038042,190.66,190.6,23.65038042]
[1738870080575,30.0,190.71,190.65,23.65038042]
[1738870080776,53.65038042,190.74,190.68,23.65038042]
[1738870080984,30.0,190.72,190.66,23.65038042]
[1738870081276,23.65038042,190.74,190.67,23.65038042]
[1738870081479,23.65038042,190.74,190.68,23.65038042]
[1738870081781,30.0,190.75,190.69,23.65038042]
[1738870081960,53.65038042,190.77,190.71,23.65038042]
[1738870082282,30.0,190.77,190.71,23.65038042]
[1738870082455,53.65038042,190.77,190.71,23.65038042]
[1738870082661,23.65038042,190.78,190.71,23.65038042]
[1738870083292,23.65038042,190.78,190.72,23.65038042]
[1738870083465,53.65038042,190.81,190.74,23.65038042]
[1738870084079,23.65038042,190.81,190.75,23.65038042]
[1738870084297,23.65038042,190.82,190.75,23.65038042]
[1738870084498,23.65038042,190.82,190.7,24.43663973]
[1738870084499,53.65038042,190.81,190.74,28.89288042]
[1738870084795,23.65038042,190.81,190.75,23.65038042]
[1738870085167,53.65038042,190.81,190.74,28.89288042]
[1738870085390,23.65038042,190.79,190.74,5.2425]
[1738870085557,30.0,190.81,190.72,5.2731]
[1738870085760,23.65038042,190.76,190.72,0.03]
[1738870085967,23.65038042,190.77,190.72,0.03]
[1738870086263,23.65038042,190.78,190.72,28.92358042]
[1738870086492,23.65038042,190.8,190.74,5.2427]
[1738870086669,23.65038042,190.82,190.75,23.65038042]
[1738870087069,23.65038042,190.81,190.75,23.65038042]
[1738870087292,23.75323655,190.83,190.77,23.65038042]
[1738870087678,23.65038042,190.82,190.75,23.65038042]
[1738870088475,0.10285613,190.83,190.77,23.65038042]
[1738870088788,0.10285613,190.83,190.8,23.65038042]
[1738870088974,0.09688586,190.84,190.82,23.65038042]
[1738870089162,0.09688586,190.84,190.83,23.65038042]
[1738870089371,0.09688586,190.84,190.77,7.0087]
[1738870089597,0.09688586,190.84,190.81,23.65038042]
[1738870090368,0.09688586,190.84,190.82,23.65038042]
[1738870090567,0.09688586,190.84,190.82,5.2403]
[1738870090865,0.09688586,190.84,190.83,23.65038042]
[1738870091275,0.09688586,190.84,190.83,23.77587042]
[1738870091494,0.09688586,190.84,190.83,39.09897715]
[1738870091875,8.586e-05,190.84,190.83,40.34995715]
[1738870092587,8.586e-05,190.84,190.83,28.89058042]
[1738870092792,8.586e-05,190.84,190.83,5.2402]
[1738870093491,8.586e-05,190.84,190.82,23.65038042]
[1738870093492,8.586e-05,190.84,190.82,28.89088042]
[1738870094068,8.586e-05,190.84,190.83,23.65038042]
[1738870094274,8.586e-05,190.84,190.83,24.65038042]
[1738870094568,0.09687844,190.84,190.83,43.67889895]
[1738870095171,0.09687844,190.84,190.83,42.67889895]
[1738870095974,0.09687844,190.84,190.83,42.80438895]
[1738870096377,0.09687844,190.84,190.83,28.89058042]
[1738870096597,0.09679258,190.84,190.83,5.2402]
[1738870097204,0.09679258,190.84,190.83,29.01607042]
[1738870098693,9.258e-05,190.84,190.83,45.59016997]
[1738870098894,9.258e-05,190.84,190.83,44.59016997]
[1738870099098,9.258e-05,190.84,190.83,45.59016997]
[1738870102285,9.258e-05,190.84,190.83,44.59016997]
[1738870102473,9.258e-05,190.84,190.83,45.59016997]
[1738870103885,29.70888042,190.99,190.88,0.12549]
[1738870104084,53.65038042,190.95,190.89,23.65038042]
[1738870104284,23.65038042,190.94,190.88,23.65038042]
[1738870104483,30.0,190.9,190.83,5.2402]
[1738870104796,30.0,190.87,190.78,5.2416]
[1738870104978,15.86103819,190.91,190.75,5.2424]
[1738870104979,30.0,190.85,190.75,5.2424]
[1738870105375,30.0,190.83,190.75,5.2424]
[1738870105888,53.65038042,190.83,190.76,23.65038042]
[1738870106072,23.65038042,190.83,190.77,23.65038042]
[1738870106401,53.65038042,190.83,190.76,23.65038042]
[1738870106702,53.65038042,190.83,190.77,5.2419]
[1738870106888,53.65038042,190.85,190.79,23.65038042]
[1738870107099,23.65038042,190.85,190.79,23.65038042]
[1738870107599,23.65038042,190.86,190.79,23.65038042]
[1738870107779,23.65038042,190.9,190.83,23.65038042]
[1738870107976,53.65038042,190.89,190.83,23.65038042]
[1738870108276,23.65038042,190.9,190.83,23.65038042]
[1738870108795,23.65038042,190.9,190.84,23.65038042]
[1738870108997,30.10300966,190.91,190.85,23.65038042]
[1738870109179,23.65038042,190.9,190.83,28.89048042]
[1738870109488,23.65038042,190.88,190.82,28.89088042]
[1738870110204,0.063,190.84,190.82,28.89088042]
[1738870110887,0.063,190.84,190.83,23.65038042]
[1738870111402,0.063,190.84,190.82,28.89088042]
[1738870112007,0.063,190.84,190.83,23.65038042]
[1738870112783,0.063,190.84,190.83,28.89058042]
[1738870114610,0.16982143,190.84,190.8,23.65038042]
[1738870114909,0.16982143,190.84,190.79,23.65038042]
[1738870115108,0.16982143,190.84,190.8,23.65038042]
[1738870115287,0.16982143,190.84,190.81,23.65038042]
[1738870115692,0.16982143,190.84,190.81,28.89108042]
[1738870116404,0.16982143,190.84,190.82,23.65038042]
[1738870117303,0.16982143,190.84,190.83,23.65038042]
[1738870117490,0.16982143,190.84,190.82,23.65038042]
[1738870117694,0.16982143,190.84,190.83,23.65038042]
[1738870118401,0.16982143,190.84,190.81,23.65038042]
[1738870119006,23.65038042,190.83,190.76,23.65038042]
[1738870119192,30.0,190.81,190.75,0.03]
[1738870119394,25.74718042,190.76,190.75,0.03]
[1738870119593,39.41000895,190.76,190.75,0.03]
[1738870119792,50.0,190.73,190.72,0.03]
[1738870120001,30.0,190.71,190.63,13.24716381]
[1738870120706,15.75962853,190.76,190.68,23.65038042]
[1738870120707,23.65038042,190.75,190.68,23.65038042]
[1738870120905,23.65038042,190.75,190.69,23.65038042]
[1738870121419,23.65038042,190.76,190.7,23.65038042]
[1738870121581,23.65038042,190.77,190.7,28.89408042]
[1738870121785,53.65038042,190.76,190.69,23.65038042]
[1738870122092,23.65038042,190.75,190.69,0.03]
[1738870122693,30.0,190.76,190.7,23.65038042]
[1738870123015,53.65038042,190.76,190.7,23.65038042]
[1738870123217,23.65038042,190.76,190.69,28.92438042]
[1738870123413,23.65038042,190.77,190.7,23.65038042]
[1738870124323,23.65038042,190.77,190.71,23.65038042]
[1738870124487,23.65038042,190.77,190.7,23.65038042]
[1738870124692,30.16982143,190.84,190.76,23.65038042]
[1738870124996,30.16982143,190.84,190.78,23.65038042]
[1738870125197,30.16982143,190.84,190.79,23.65038042]
[1738870125415,30.16982143,190.84,190.78,28.89188042]
[1738870125715,55.91620185,190.84,190.77,23.65038042]
[1738870126600,55.91620185,190.84,190.75,5.2424]
[1738870126601,0.16982143,190.84,190.79,23.65038042]
[1738870126804,0.16982143,190.84,190.81,23.65038042]
[1738870126995,23.82020185,190.84,190.77,28.89228042]
[1738870127197,23.65038042,190.83,190.77,5.2419]
[1738870127398,0.16982143,190.84,190.78,23.65038042]
[1738870127920,0.16982143,190.84,190.79,23.65038042]
[1738870129018,0.16982143,190.84,190.8,5.241]
[1738870129210,0.16982143,190.84,190.79,23.65038042]
[1738870129211,23.65038042,190.83,190.76,23.65038042]
[1738870129404,23.82020185,190.84,190.77,23.65038042]
[1738870130098,23.82020185,190.84,190.78,5.2416]
[1738870130516,0.16982143,190.84,190.79,23.65038042]
[1738870131001,0.16982143,190.84,190.78,28.89198042]
[1738870132305,0.16982143,190.84,190.79,23.65038042]
[1738870134603,0.10677778,190.81,190.8,5.241]
[1738870134833,0.10677778,190.81,190.8,28.89138042]
[1738870135229,0.10677778,190.81,190.8,5.241]
[1738870135534,0.10677778,190.81,190.78,23.65038042]
[1738870135910,23.65038042,190.8,190.73,23.65038042]
[1738870136110,23.65038042,190.77,190.71,0.03]
[1738870136322,23.65038042,190.77,190.72,5.2432]
[1738870136647,23.65038042,190.77,190.71,5.2735]
[1738870136832,23.65038042,190.75,190.71,5.2735]
[1738870137132,23.65038042,190.73,190.71,0.03]
[1738870137323,23.65038042,190.72,190.71,0.03]
[1738870139216,53.65038042,190.72,190.71,0.03]
[1738870139825,53.90136042,190.72,190.71,0.03]
[1738870140147,50.0,190.7,190.69,0.03]
[1738870140352,87.31320895,190.7,190.69,0.03]
[1738870140518,89.41070895,190.7,190.69,0.03]
[1738870141151,75.74788042,190.7,190.69,0.03]
[1738870141452,37.6092,190.65,190.55,5.2779]
[1738870141653,23.65038042,190.6,190.55,0.03]
[1738870142148,23.65038042,190.59,190.55,0.03]
[1738870142649,25.74938042,190.56,190.55,0.03]
[1738870142812,30.0,190.57,190.55,23.68038042]
[1738870143147,7.6092,190.65,190.56,23.65038042]
[1738870143352,53.65038042,190.67,190.6,23.65038042]
[1738870143728,30.0,190.65,190.59,23.65038042]
[1738870144049,25.74838042,190.66,190.59,23.65038042]
[1738870144268,30.0,190.69,190.64,23.65038042]
[1738870144459,55.74778042,190.71,190.64,23.65038042]
[1738870144642,53.65038042,190.71,190.64,23.65038042]
[1738870145462,23.65038042,190.7,190.63,23.65038042]
[1738870146249,30.0,190.67,190.61,23.65038042]
[1738870146529,53.65038042,190.67,190.6,23.65038042]
[1738870146936,23.65038042,190.68,190.61,23.65038042]
[1738870147235,23.65038042,190.68,190.62,23.65038042]
[1738870147639,32.1606,190.69,190.63,23.65038042]
[1738870147640,0.063,190.69,190.63,23.65038042]
[1738870147950,0.063,190.69,190.64,23.65038042]
[1738870148130,0.063,190.69,190.65,23.65038042]
[1738870148333,0.063,190.69,190.64,23.65038042]
[1738870148750,0.063,190.69,190.62,5.246]
[1738870148751,23.65038042,190.68,190.62,5.246]
[1738870148952,23.65038042,190.67,190.62,5.246]
[1738870149167,53.65038042,190.66,190.59,23.65038042]
[1738870149462,23.65038042,190.64,190.58,23.65038042]
[1738870149626,23.65038042,190.64,190.57,23.65038042]
[1738870149943,23.65038042,190.65,190.58,23.65038042]
[1738870150541,23.65038042,190.63,190.56,28.89798042]
[1738870150729,23.65038042,190.62,190.56,28.89798042]
[1738870150928,23.65038042,190.59,190.55,0.03]
[1738870151228,23.65038042,190.58,190.55,0.03]
[1738870152161,23.65038042,190.57,190.55,0.03]
[1738870152763,55.74918042,190.58,190.55,0.03]
[1738870152928,23.65038042,190.56,190.55,0.03]
[1738870153272,53.65038042,190.56,190.55,0.03]
[1738870153744,55.74938042,190.56,190.55,0.03]
[1738870154748,55.84695793,190.56,190.55,0.03]
[1738870155160,0.09757751,190.56,190.55,0.03]
[1738870156767,55.84695793,190.56,190.55,0.03]
[1738870157081,55.97244793,190.56,190.55,0.03]
[1738870157946,30.09757751,190.56,190.55,0.03]
[1738870158137,32.19657751,190.56,190.55,0.03]
[1738870159479,55.84695793,190.56,190.55,0.03]
[1738870160251,30.09757751,190.56,190.55,0.03]
[1738870162287,0.09757751,190.56,190.55,0.03]
[1738870162496,0.09757751,190.56,190.55,23.68038042]
[1738870164566,0.09757751,190.56,190.55,28.92828042]
[1738870165487,0.09757751,190.56,190.55,5.2779]
[1738870166397,0.09757751,190.56,190.55,0.03]
[1738870170698,0.09757751,190.56,190.54,23.65038042]
[1738870171097,0.09757751,190.56,190.55,23.65038042]
[1738870172269,0.09757751,190.56,190.52,28.92908042]
[1738870172791,0.09757751,190.56,190.53,23.65038042]
[1738870173985,0.09757751,190.56,190.53,28.89858042]
[1738870174627,0.11002313,190.54,190.53,28.89858042]
[1738870174807,0.11002313,190.54,190.53,5.2482]
[1738870175095,0.11002313,190.54,190.53,28.89858042]
[1738870176275,0.11002313,190.54,190.53,5.2482]
[1738870176795,0.11002313,190.54,190.53,20.13784571]
[1738870177181,0.11002313,190.54,190.52,0.03]
[1738870180680,0.11516738,190.6,190.53,14.88964571]
[1738870180885,0.11516738,190.6,190.58,14.88964571]
[1738870181486,0.11516738,190.6,190.54,14.88964571]
[1738870181487,17.10341309,190.6,190.54,14.88964571]
[1738870181689,14.88964571,190.58,190.52,0.03]
[1738870181889,14.88964571,190.58,190.54,0.03]
[1738870182094,47.08655933,190.59,190.54,0.03]
[1738870182403,47.14955933,190.59,190.54,0.03]
[1738870182806,0.063,190.59,190.54,0.03]
[1738870182983,30.0,190.58,190.54,0.03]
[1738870183886,23.88704417,190.59,190.54,0.03]
[1738870184215,0.063,190.59,190.54,0.03]
[1738870184593,30.063,190.59,190.54,0.03]
[1738870184979,55.98574417,190.59,190.54,0.03]
[1738870185184,53.82404417,190.55,190.54,0.03]
[1738870185599,53.94953417,190.55,190.54,0.03]
[1738870185885,53.82404417,190.55,190.54,0.03]
[1738870186203,55.92314417,190.55,190.54,0.03]
[1738870188204,56.04863417,190.55,190.54,0.03]
[1738870188709,55.92314417,190.55,190.54,0.03]
[1738870189695,56.04863417,190.55,190.54,0.03]
[1738870189892,55.92314417,190.55,190.54,0.03]
[1738870190097,30.0,190.55,190.54,0.03]
[1738870190714,2.099,190.56,190.54,0.03]
[1738870191006,53.82404417,190.57,190.54,0.03]
[1738870191394,2.0989,190.57,190.54,0.03]
[1738870191791,55.92294417,190.57,190.54,0.03]
[1738870192323,0.063,190.59,190.54,23.85404417]
[1738870192514,0.063,190.59,190.55,23.82404417]
[1738870193288,0.063,190.59,190.56,23.82404417]
[1738870194314,0.063,190.59,190.57,23.82404417]
[1738870194622,0.10661857,190.58,190.57,23.82404417]
[1738870195497,0.10661857,190.58,190.57,3.88669785]
[1738870196623,23.93066274,190.58,190.57,3.88669785]
[1738870196999,23.93066274,190.58,190.55,3.88669785]
[1738870197194,23.82404417,190.56,190.55,3.88669785]
[1738870197397,23.93066274,190.58,190.55,3.88669785]
[1738870198506,23.93066274,190.58,190.54,0.03]
[1738870200205,0.10661857,190.58,190.54,0.03]
[1738870201136,30.0,190.57,190.54,0.03]
[1738870201336,53.94953417,190.55,190.54,0.03]
[1738870201539,0.12549,190.54,190.53,3.88811685]
[1738870201819,30.12549,190.53,190.52,1.685e-05]
[1738870202127,30.0,190.53,190.52,1.685e-05]
[1738870202308,55.92344417,190.53,190.52,1.685e-05]
[1738870202497,69.7117627,190.53,190.52,1.685e-05]
[1738870203201,50.12549,190.5,190.49,1.685e-05]
[1738870203402,111.43640687,190.5,190.49,1.685e-05]
[1738870203609,112.43640687,190.5,190.49,1.685e-05]
[1738870203804,112.43640687,190.5,190.41,0.22]
[1738870203805,0.12549,190.42,190.41,0.22]
[1738870204002,23.94953417,190.42,190.41,0.22]
[1738870204416,63.53700687,190.42,190.41,0.22]
[1738870204616,63.53700687,190.42,190.39,15.7384298]
[1738870204617,0.12549,190.4,190.39,15.7384298]
[1738870204835,47.77357834,190.4,190.39,15.7384298]
[1738870205128,30.0,190.35,190.32,8.1756774]
[1738870205421,53.94953417,190.33,190.32,8.1756774]
[1738870206726,53.82404417,190.33,190.32,8.1756774]
[1738870207419,67.6123627,190.33,190.32,8.1756774]
[1738870208703,30.0,190.28,190.22,23.82404417]
[1738870208904,61.73456806,190.34,190.27,23.82404417]
[1738870209119,37.91052389,190.34,190.29,23.82404417]
[1738870209332,53.82404417,190.32,190.26,23.82404417]
[1738870209505,53.82404417,190.32,190.25,23.82404417]
[1738870209506,7.91052389,190.3,190.25,23.82404417]
[1738870209706,7.91052389,190.3,190.2,7.89551032]
[1738870209707,37.91052389,190.3,190.2,7.89551032]
[1738870210002,30.0,190.28,190.2,5.2575]
[1738870210251,30.0,190.26,190.19,6.5576]
[1738870210803,23.82404417,190.25,190.19,23.82404417]
[1738870211214,53.82404417,190.28,190.21,23.82404417]
[1738870211434,61.73456806,190.3,190.24,23.82404417]
[1738870211643,61.73456806,190.3,190.23,23.82404417]
[1738870212138,7.91052389,190.3,190.25,23.82404417]
[1738870212445,55.92574417,190.32,190.25,23.82404417]
[1738870213054,30.0,190.32,190.29,23.82404417]
[1738870213229,30.0,190.32,190.28,23.82404417]
[1738870214022,7.91052389,190.35,190.31,23.82404417]
[1738870214344,7.91052389,190.35,190.25,19.3967]
[1738870214345,31.73456806,190.35,190.29,23.82404417]
[1738870214717,0.0986771,190.32,190.3,23.82404417]
[1738870215031,0.0986771,190.32,190.31,23.82404417]
[1738870216641,0.0986771,190.32,190.28,5.2554]
[1738870216840,23.82404417,190.29,190.23,23.82404417]
[1738870217159,23.82404417,190.29,190.18,6.2122]
[1738870217160,30.0,190.26,190.18,11.4701]
[1738870217328,53.82404417,190.26,190.18,11.4701]
[1738870217528,30.0,190.28,190.21,23.82404417]
[1738870217746,30.0,190.26,190.21,23.82404417]
[1738870218455,53.82404417,190.26,190.2,23.82404417]
[1738870218673,53.82404417,190.24,190.18,23.82404417]
[1738870219240,53.82404417,190.24,190.17,23.82404417]
[1738870219574,53.82404417,190.24,190.18,23.82404417]
[1738870219877,30.0,190.22,190.18,23.82404417]
[1738870220051,53.82404417,190.26,190.2,23.82404417]
[1738870220238,53.82404417,190.26,190.21,23.82404417]
[1738870220239,30.0,190.26,190.21,23.82404417]
[1738870220444,30.0,190.26,190.2,23.82404417]
[1738870220645,53.82404417,190.26,190.2,23.82404417]
[1738870220958,23.82404417,190.25,190.19,29.08184417]
[1738870221266,55.92644417,190.26,190.19,29.08184417]
[1738870221644,30.0,190.26,190.21,23.82404417]
[1738870222364,30.0,190.31,190.25,23.82404417]
[1738870222676,30.0,190.31,190.27,23.82404417]
[1738870222965,30.0,190.29,190.25,23.82404417]
[1738870223157,30.0,190.29,190.24,23.82404417]
[1738870223365,31.83324516,190.32,190.26,23.82404417]
[1738870223944,30.0,190.31,190.25,23.82404417]
[1738870224252,33.93494516,190.32,190.25,23.82404417]
[1738870224447,30.0,190.31,190.26,23.82404417]
[1738870224649,0.0986771,190.32,190.29,23.82404417]
[1738870226165,0.0986771,190.32,190.26,29.07974417]
[1738870226348,23.92272127,190.32,190.26,5.2557]
[1738870226546,26.02442127,190.32,190.25,23.82404417]
[1738870226746,26.02442127,190.32,190.25,29.08024417]
[1738870226952,30.0,190.31,190.25,29.08024417]
[1738870227156,23.82404417,190.3,190.24,29.08044417]
[1738870227462,30.0,190.29,190.23,29.08074417]
[1738870227964,55.92614417,190.29,190.22,29.08104417]
[1738870228658,0.0986771,190.32,190.28,45.82404417]
[1738870228873,0.11505333,190.4,190.31,23.82404417]
[1738870229165,0.11505333,190.4,190.37,23.82404417]
[1738870229572,7.91052389,190.46,190.37,24.82404417]
[1738870229764,30.0,190.54,190.45,23.82404417]
[1738870229946,30.0,190.54,190.5,23.82404417]
[1738870230150,30.0,190.54,190.51,23.82404417]
[1738870230656,30.0,190.54,190.48,23.82404417]
[1738870231055,30.0,190.54,190.5,23.82404417]
[1738870231684,13.78831853,190.53,190.47,23.82404417]
[1738870231888,23.82404417,190.5,190.44,23.82404417]
[1738870232096,30.0,190.53,190.43,18.3792]
[1738870232257,30.0,190.53,190.43,19.3792]
[1738870232880,0.063,190.58,190.45,1.0]
[1738870232881,30.0,190.55,190.45,1.0]
[1738870233068,0.063,190.58,190.45,1.0]
[1738870233069,30.0,190.57,190.52,23.82404417]
[1738870233450,0.063,190.58,190.53,23.82404417]
[1738870233666,0.063,190.58,190.54,23.82404417]
[1738870233859,0.063,190.58,190.53,23.82404417]
[1738870234067,30.0,190.55,190.52,23.82404417]
[1738870234360,30.0,190.55,190.5,23.82404417]
[1738870234565,53.82404417,190.51,190.45,23.82404417]
[1738870234755,53.82404417,190.51,190.44,23.82404417]
[1738870234961,53.82404417,190.51,190.45,23.82404417]
[1738870235148,30.09844908,190.53,190.47,23.82404417]
[1738870235351,0.09844908,190.53,190.43,5.2512]
[1738870235568,0.09844908,190.53,190.43,18.3793]
[1738870236157,0.09844908,190.53,190.43,13.91550252]
[1738870236475,0.09844908,190.53,190.49,23.82404417]
[1738870236768,0.09844908,190.53,190.52,23.82404417]
[1738870237156,0.09844908,190.53,190.49,23.82404417]
[1738870237363,23.82404417,190.52,190.46,23.82404417]
[1738870237687,30.0,190.47,190.38,5.2526]
[1738870238284,32.6251,190.47,190.38,5.2526]
[1738870238654,56.44914417,190.47,190.4,23.82404417]
[1738870238875,23.82404417,190.42,190.36,29.07694417]
[1738870239181,53.82404417,190.41,190.35,23.82404417]
[1738870239362,30.0,190.41,190.35,23.82404417]
[1738870239566,30.0,190.39,190.35,23.82404417]
[1738870239875,30.0,190.39,190.33,23.82404417]
[1738870240063,53.82404417,190.39,190.32,23.82404417]
[1738870240259,30.0,190.34,190.3,23.82404417]
[1738870240578,30.0,190.34,190.25,0.03]
[1738870240579,23.82404417,190.31,190.25,23.85404417]
[1738870240876,30.0,190.32,190.25,23.85404417]
[1738870240877,53.82404417,190.32,190.25,23.85404417]
[1738870241081,30.0,190.3,190.25,23.85404417]
[1738870241473,30.0,190.3,190.25,0.03]
[1738870241677,30.0,190.3,190.25,23.85404417]
[1738870241853,30.0,190.32,190.28,23.82404417]
[1738870242059,30.0,190.32,190.27,23.82404417]
[1738870242290,30.12549,190.34,190.28,23.82404417]
[1738870242448,30.12549,190.34,190.25,5.2861]
[1738870242449,30.0,190.32,190.27,23.82404417]
[1738870242648,30.0,190.32,190.27,38.81750476]
[1738870243088,30.0,190.32,190.28,38.81750476]
[1738870243289,30.0,190.32,190.27,38.81750476]
[1738870243504,30.0,190.3,190.25,0.03]
[1738870243785,68.81750476,190.3,190.25,0.03]
[1738870244486,71.44490476,190.3,190.25,0.03]
[1738870244890,30.0,190.3,190.26,38.81750476]
[1738870245197,30.0,190.31,190.27,38.81750476]
[1738870245374,30.0,190.31,190.25,38.84750476]
[1738870245685,30.0,190.28,190.25,0.03]
[1738870245998,68.81750476,190.33,190.26,38.81750476]
[1738870246160,30.0,190.31,190.26,38.81750476]
[1738870247104,30.0,190.26,190.25,0.03]
[1738870247255,68.94299476,190.26,190.25,0.03]
[1738870247459,82.60582329,190.26,190.25,0.03]
[1738870248256,30.0,190.2,190.14,38.81750476]
[1738870248458,30.0,190.2,190.14,44.07650476]
[1738870248660,30.0,190.2,190.15,38.81750476]
[1738870249488,30.0,190.22,190.18,38.81750476]
[1738870249780,30.0,190.22,190.19,38.81750476]
[1738870249996,30.0,190.22,190.17,38.81750476]
[1738870250163,30.0,190.22,190.18,38.81750476]
[1738870250367,32.6282,190.24,190.18,38.81750476]
[1738870250571,30.0,190.24,190.19,38.81750476]
[1738870250764,30.0,190.26,190.21,38.81750476]
[1738870250965,30.0,190.26,190.22,38.81750476]
[1738870251171,2.6273,190.31,190.25,38.81750476]
[1738870251386,30.0,190.3,190.27,38.81750476]
[1738870251690,30.0,190.3,190.25,38.81750476]
[1738870251884,2.6273,190.31,190.25,38.81750476]
[1738870252204,68.81750476,190.32,190.27,38.81750476]
[1738870252205,32.6271,190.32,190.27,38.81750476]
[1738870252408,32.6271,190.32,190.26,38.81750476]
[1738870252693,30.0,190.3,190.25,38.81750476]
[1738870252994,32.6274,190.3,190.25,38.81750476]
[1738870253493,2.6274,190.3,190.25,38.81750476]
[1738870253662,2.6274,190.3,190.18,18.95312556]
[1738870253663,30.0,190.24,190.15,44.07650476]
[1738870253863,38.81750476,190.21,190.14,5.2892]
[1738870254161,68.81750476,190.2,190.14,0.03]
[1738870254357,38.81750476,190.19,190.14,0.03]
[1738870254570,0.10568306,190.15,190.14,0.03]
[1738870256293,32.73518306,190.15,190.14,0.03]
[1738870256701,32.86067306,190.15,190.14,0.03]
[1738870257198,0.10568306,190.15,190.14,0.03]
[1738870259379,69.04867782,190.15,190.14,0.03]
[1738870259574,71.92915782,190.15,190.14,0.03]
[1738870259781,85.34100635,190.15,190.14,0.03]
[1738870260293,32.86067306,190.15,190.14,0.03]
[1738870260692,71.67817782,190.15,190.14,0.03]
[1738870261081,32.86067306,190.15,190.14,0.03]
[1738870261279,71.67817782,190.15,190.14,0.03]
[1738870261506,30.0,190.11,190.09,0.03]
[1738870261685,52.60582329,190.1,190.09,0.03]
[1738870263185,0.12549,190.04,189.98,38.81750476]